bitfinex/quotes_SOLUSD_20250118
["timestamp","ask_amount","ask_price","bid_price","bid_amount"]
[1737219999812,4.0457,247.17,247.09,32.06651732]
[1737220001231,32.06651732,247.16,247.07,32.06651732]
[1737220001830,32.06651732,247.14,247.05,32.06651732]
[1737220002032,4.0464,247.13,247.05,32.06651732]
[1737220002530,32.06651732,247.14,247.05,32.06651732]
[1737220002531,36.11281732,247.14,247.05,32.06651732]
[1737220002728,32.06651732,247.12,247.03,32.06651732]
[1737220003038,32.06651732,247.1,247.01,32.06651732]
[1737220003232,4.0463,247.14,247.03,32.06651732]
[1737220003233,32.06651732,247.12,247.03,32.06651732]
[1737220003421,4.0463,247.14,246.91,23.776884]
[1737220003736,32.06651732,247.1,247.03,32.06651732]
[1737220003909,32.06651732,247.07,246.99,32.06651732]
[1737220004115,32.06651732,247.11,247.04,32.06651732]
[1737220004345,32.06651732,247.13,247.09,0.063]
[1737220005433,4.0463,247.14,247.09,20.063]
[1737220005631,32.06651732,247.21,247.12,32.06651732]
[1737220005812,32.06651732,247.19,247.1,32.06651732]
[1737220006010,14.1554,247.26,247.09,0.063]
[1737220006011,32.06651732,247.13,247.09,0.063]
[1737220006215,32.06651732,247.11,247.09,0.063]
[1737220007335,4.0469,247.1,247.09,2e-08]
[1737220009538,4.0469,247.1,246.9,0.063]
[1737220009539,12.15,247.07,246.9,0.063]
[1737220009741,32.06651732,246.96,246.9,0.063]
[1737220010641,75.6252,247.1,246.9,0.063]
[1737220010642,32.06651732,246.92,246.9,0.063]
[1737220011443,4.05,246.91,246.9,0.063]
[1737220011737,32.06651732,246.95,246.9,0.063]
[1737220011919,32.06651732,246.91,246.9,0.063]
[1737220013536,36.11651732,246.91,246.9,0.063]
[1737220013737,32.10730618,246.92,246.9,0.063]
[1737220014127,32.10730618,246.99,246.9,0.063]
[1737220014622,32.10730618,246.97,246.9,0.063]
[1737220014826,32.10730618,246.95,246.9,0.063]
[1737220015342,4.0498,246.92,246.9,0.063]
[1737220015546,32.10730618,246.91,246.9,0.063]
[1737220015746,4.0498,246.92,246.9,0.063]
[1737220016150,32.10730618,246.95,246.9,0.063]
[1737220016328,32.10730618,246.97,246.9,0.063]
[1737220016644,32.10730618,246.95,246.9,0.063]
[1737220016852,32.10730618,246.91,246.9,0.063]
[1737220017035,32.10730618,246.94,246.9,0.063]
[1737220017225,32.10730618,246.96,246.9,0.063]
[1737220017422,24.2884,247.03,246.9,0.063]
[1737220017423,32.10730618,246.94,246.9,0.063]
[1737220019148,14.1729,246.95,246.9,0.063]
[1737220019450,32.10730618,246.94,246.9,0.063]
[1737220019659,4.0497,246.93,246.9,0.063]
[1737220019847,32.10730618,246.92,246.9,0.063]
[1737220020427,20.0,246.82,246.7,6.26620867]
[1737220020637,32.10730618,246.71,246.68,6.26620867]
[1737220020927,32.10730618,246.69,246.68,6.26620867]
[1737220021560,36.16090618,246.69,246.68,6.26620867]
[1737220021857,36.15930618,246.79,246.68,38.37351485]
[1737220022062,36.15930618,246.79,246.7,32.10730618]
[1737220022231,32.10730618,246.77,246.68,32.10730618]
[1737220022558,32.10730618,246.91,246.79,20.0]
[1737220022741,32.10730618,246.85,246.79,20.0]
[1737220022936,32.10730618,246.81,246.72,32.10730618]
[1737220023240,32.10730618,246.81,246.75,20.0]
[1737220023444,4.0512,246.84,246.75,20.0]
[1737220023645,36.15850618,246.84,246.75,20.0]
[1737220024252,4.0509,246.86,246.77,20.0]
[1737220024433,36.15820618,246.86,246.76,32.10730618]
[1737220024835,32.10730618,246.9,246.8,32.10730618]
[1737220025048,32.10730618,246.9,246.83,20.0]
[1737220025458,16.203591,247.03,246.87,32.10730618]
[1737220025656,32.10730618,247.03,246.93,32.10730618]
[1737220025840,32.10730618,247.07,246.97,32.10730618]
[1737220026332,0.03,247.1,246.79,0.60728535]
[1737220026333,0.03,247.1,247.01,32.10730618]
[1737220026536,0.03,247.1,247.0,20.0]
[1737220026537,16.195704,247.19,247.12,23.776884]
[1737220026756,0.03,247.28,247.21,20.0]
[1737220026931,0.03,247.28,247.27,32.10730618]
[1737220027134,0.03,247.28,247.19,32.10730618]
[1737220027349,4.074,247.28,247.15,32.10730618]
[1737220027555,4.074,247.28,247.09,20.0]
[1737220028055,20.0,247.24,247.06,6.26620867]
[1737220028261,20.0,247.24,247.07,0.60719258]
[1737220028441,32.10730618,247.22,247.12,32.10730618]
[1737220028645,32.10730618,247.19,247.1,32.10730618]
[1737220028851,32.10730618,247.19,247.08,32.10730618]
[1737220029054,32.10730618,247.17,247.06,32.10730618]
[1737220029251,32.10730618,247.13,247.03,32.10730618]
[1737220029641,4.0462,247.15,247.07,32.10730618]
[1737220029843,32.10730618,247.17,247.08,0.60705917]
[1737220030052,4.0459,247.16,247.07,32.10730618]
[1737220030246,32.10730618,247.22,247.12,32.10730618]
[1737220030449,32.10730618,247.25,247.15,32.10730618]
[1737220031163,4.0441,247.27,247.17,32.10730618]
[1737220031366,0.03,247.28,247.23,32.10730618]
[1737220031549,0.03,247.28,247.27,32.10730618]
[1737220031737,0.03,247.28,247.21,32.10730618]
[1737220032146,0.03,247.28,247.19,32.10730618]
[1737220032356,0.03,247.28,247.21,32.10730618]
[1737220032562,0.03,247.28,247.27,32.10730618]
[1737220034267,2.38083999,247.49,247.32,20.0]
[1737220034439,2.38083999,247.49,247.43,32.10730618]
[1737220034643,0.063,247.53,247.45,32.10730618]
[1737220034841,36.14730618,247.52,247.4,32.10730618]
[1737220035068,32.10730618,247.48,247.38,32.10730618]
[1737220035268,4.04,247.52,247.44,32.10730618]
[1737220035565,0.063,247.53,247.44,32.10730618]
[1737220035863,32.17030618,247.53,247.45,0.60619608]
[1737220036070,0.063,247.53,247.45,32.10730618]
[1737220036261,0.063,247.53,247.48,20.0]
[1737220036570,0.063,247.53,247.51,32.10730618]
[1737220036747,0.063,247.53,247.45,32.10730618]
[1737220036939,32.10730618,247.51,247.41,32.10730618]
[1737220037556,32.10730618,247.47,247.38,32.10730618]
[1737220037754,32.10730618,247.45,247.36,32.10730618]
[1737220037944,32.10730618,247.49,247.38,32.10730618]
[1737220038155,36.14760618,247.51,247.4,32.10730618]
[1737220038463,36.14760618,247.51,247.25,0.60627416]
[1737220038464,32.10730618,247.46,247.36,32.10730618]
[1737220038969,32.10730618,247.44,247.34,32.10730618]
[1737220039156,32.10730618,247.46,247.36,32.10730618]
[1737220039668,32.10730618,247.46,247.25,0.60625756]
[1737220039669,32.10730618,247.42,247.32,32.10730618]
[1737220039849,32.10730618,247.38,247.29,32.10730618]
[1737220040168,32.10730618,247.33,247.25,32.10730618]
[1737220040370,32.10730618,247.32,247.23,32.10730618]
[1737220040547,32.10730618,247.3,247.2,32.10730618]
[1737220040871,32.10730618,247.24,247.16,32.10730618]
[1737220041045,32.10730618,247.28,247.2,32.10730618]
[1737220041242,32.10730618,247.27,247.18,32.10730618]
[1737220041471,32.10730618,247.29,247.2,32.10730618]
[1737220041773,32.10730618,247.25,247.16,32.10730618]
[1737220041945,32.10730618,247.27,247.18,32.10730618]
[1737220042560,4.0425,247.37,247.22,32.10730618]
[1737220042768,32.10730618,247.32,247.22,32.10730618]
[1737220043152,32.10730618,247.34,247.27,20.0]
[1737220043472,45.06920618,247.44,247.35,20.0]
[1737220043660,32.10730618,247.42,247.35,20.0]
[1737220043970,32.10730618,247.42,247.32,32.10730618]
[1737220044160,32.10730618,247.33,247.18,0.60640688]
[1737220044380,32.10730618,247.35,247.25,32.10730618]
[1737220044548,32.10730618,247.32,247.23,32.10730618]
[1737220044745,32.10730618,247.34,247.25,32.10730618]
[1737220044948,32.10730618,247.32,247.23,32.10730618]
[1737220045566,32.10730618,247.36,247.26,32.10730618]
[1737220045775,32.10730618,247.33,247.26,20.0]
[1737220046077,32.10730618,247.35,247.26,20.0]
[1737220046253,32.10730618,247.37,247.27,32.71390516]
[1737220046455,12.9619,247.44,247.3,52.10730618]
[1737220046655,45.06920618,247.44,247.34,32.10730618]
[1737220046885,32.10730618,247.37,247.18,0.60635614]
[1737220047169,17.0033,247.44,247.25,32.10730618]
[1737220047170,32.10730618,247.35,247.25,32.10730618]
[1737220047384,32.10730618,247.35,247.26,0.60656211]
[1737220047972,32.10730618,247.37,247.27,32.10730618]
[1737220048274,32.10730618,247.39,247.29,32.10730618]
[1737220048582,32.10730618,247.39,247.3,0.60645656]
[1737220049069,32.10730618,247.39,247.29,32.10730618]
[1737220049574,32.10730618,247.37,247.29,32.10730618]
[1737220049775,32.10730618,247.37,247.27,32.10730618]
[1737220050078,32.10730618,247.29,247.2,0.60650614]
[1737220050264,32.10730618,247.27,247.2,0.60672353]
[1737220050573,32.10730618,247.33,247.23,32.10730618]
[1737220050769,32.10730618,247.33,247.26,20.0]
[1737220050984,32.10730618,247.27,247.17,32.10730618]
[1737220051158,32.10730618,247.27,247.14,0.60659287]
[1737220051159,32.10730618,247.21,247.14,0.60668076]
[1737220051352,32.10730618,247.3,247.2,32.10730618]
[1737220051553,32.10730618,247.32,247.22,32.10730618]
[1737220051747,32.10730618,247.32,247.23,0.6066288]
[1737220051973,2.22070943,247.43,247.27,20.0]
[1737220052180,45.30820618,247.54,247.42,32.10730618]
[1737220052384,45.30820618,247.54,247.45,32.10730618]
[1737220052876,32.10730618,247.52,247.43,32.10730618]
[1737220053071,32.10730618,247.5,247.41,32.10730618]
[1737220053271,13.2009,247.54,247.43,32.10730618]
[1737220053272,32.10730618,247.52,247.43,32.10730618]
[1737220053477,32.10730618,247.52,247.42,0.60618748]
[1737220053478,32.10730618,247.58,247.47,32.10730618]
[1737220053677,75.76730618,247.66,247.48,24.38288775]
[1737220053882,32.10730618,247.58,247.48,0.60600375]
[1737220054090,32.10730618,247.54,247.45,32.10730618]
[1737220054294,32.10730618,247.52,247.43,32.10730618]
[1737220055164,32.10730618,247.5,247.41,32.10730618]
[1737220055587,32.10730618,247.5,247.39,32.10730618]
[1737220055787,32.10730618,247.5,247.4,0.60621202]
[1737220055975,32.10730618,247.5,247.41,32.10730618]
[1737220057083,36.14770618,247.5,247.41,32.10730618]
[1737220057304,32.10730618,247.5,247.41,32.10730618]
[1737220057677,32.10730618,247.46,247.37,32.10730618]
[1737220057874,32.10730618,247.48,247.39,32.10730618]
[1737220058366,32.10730618,247.52,247.43,32.10730618]
[1737220058566,0.063,247.53,247.45,32.10730618]
[1737220058980,32.10730618,247.52,247.43,32.10730618]
[1737220059169,32.10730618,247.48,247.41,32.10730618]
[1737220059374,32.10730618,247.48,247.39,32.10730618]
[1737220060481,36.14800618,247.48,247.39,32.10730618]
[1737220060790,32.10730618,247.46,247.37,32.10730618]
[1737220060990,37.919484,247.48,247.35,32.10730618]
[1737220061174,4.0407,247.48,247.39,32.10730618]
[1737220061373,32.10730618,247.47,247.37,32.10730618]
[1737220062278,0.03,247.49,247.39,32.10730618]
[1737220062279,12.741,247.46,247.39,32.10730618]
[1737220062892,4.0705,247.49,247.43,32.10730618]
[1737220063069,36.17780618,247.49,247.39,32.10730618]
[1737220063272,36.17780618,247.49,247.29,0.6692001]
[1737220063273,32.10730618,247.47,247.37,32.10730618]
[1737220063685,32.10730618,247.43,247.33,32.10730618]
[1737220063866,32.10730618,247.41,247.33,32.10730618]
[1737220064068,32.10730618,247.43,247.35,32.10730618]
[1737220064280,4.0409,247.47,247.39,32.10730618]
[1737220064466,36.14820618,247.47,247.39,32.10730618]
[1737220064664,32.10730618,247.45,247.35,32.10730618]
[1737220065068,32.10730618,247.45,247.37,32.10730618]
[1737220065593,32.10730618,247.43,247.33,32.10730618]
[1737220065967,36.14820618,247.47,247.37,32.10730618]
[1737220066179,36.14820618,247.47,247.29,0.6693101]
[1737220066389,36.14820618,247.47,247.36,32.10730618]
[1737220066592,36.14820618,247.47,247.29,0.6693101]
[1737220066593,32.10730618,247.39,247.29,32.77661628]
[1737220066769,32.10730618,247.37,247.29,32.17030618]
[1737220067277,21.7765,247.47,247.29,32.17030618]
[1737220067278,32.10730618,247.43,247.35,32.10730618]
[1737220067788,11.6743,247.47,247.39,32.10730618]
[1737220067995,11.6743,247.47,247.37,32.10730618]
[1737220068173,11.6743,247.47,247.39,32.10730618]
[1737220068375,11.6743,247.47,247.41,32.10730618]
[1737220068591,43.64,247.48,247.43,32.10730618]
[1737220068799,43.64,247.48,247.45,32.10730618]
[1737220069097,32.10730618,247.46,247.34,32.10730618]
[1737220069393,32.10730618,247.41,247.32,32.10730618]
[1737220069596,32.10730618,247.33,247.29,0.063]
[1737220069779,32.10730618,247.3,247.17,32.10730618]
[1737220069969,32.10730618,247.27,247.11,32.10730618]
[1737220070165,32.10730618,247.19,247.09,32.10730618]
[1737220070387,32.10730618,247.21,247.11,32.10730618]
[1737220070583,32.10730618,247.23,247.13,32.10730618]
[1737220071182,32.10730618,247.23,247.15,32.10730618]
[1737220071376,32.10730618,247.21,247.11,32.10730618]
[1737220071569,12.8952,247.29,247.19,32.10730618]
[1737220071775,16.9391,247.29,247.22,32.10730618]
[1737220072176,16.9391,247.29,247.24,32.10730618]
[1737220072384,12.8952,247.29,247.24,32.10730618]
[1737220072585,16.9391,247.29,247.24,32.10730618]
[1737220072791,32.10730618,247.28,247.2,32.10730618]
[1737220073189,32.10730618,247.26,247.16,32.10730618]
[1737220073500,32.10730618,247.24,247.16,32.10730618]
[1737220073699,32.10730618,247.24,247.12,0.063]
[1737220073700,32.10730618,247.2,247.12,0.063]
[1737220073888,32.10730618,247.18,247.12,0.063]
[1737220074074,32.10730618,247.14,247.12,0.063]
[1737220074275,4.0464,247.13,247.12,0.063]
[1737220074470,4.0464,247.13,247.04,32.17030618]
[1737220074702,32.10730618,247.09,247.04,0.063]
[1737220074895,32.10730618,247.05,246.94,32.10730618]
[1737220075097,13.0554,247.06,247.0,32.10730618]
[1737220075787,8.68,247.08,247.04,32.10730618]
[1737220075983,13.0554,247.35,247.07,52.10730618]
[1737220076177,32.10730618,247.27,247.17,32.10730618]
[1737220076377,14.1568,247.23,247.15,32.10730618]
[1737220076675,32.10730618,247.22,247.13,32.10730618]
[1737220077174,14.1568,247.23,247.18,32.10730618]
[1737220077373,8.68,247.22,247.18,32.10730618]
[1737220077574,8.68,247.22,247.18,18.06898855]
[1737220077787,8.68,247.22,247.18,32.10730618]
[1737220078100,32.10730618,247.22,247.13,32.10730618]
[1737220078286,32.10730618,247.2,247.11,32.10730618]
[1737220078594,32.10730618,247.18,247.09,32.10730618]
[1737220078805,32.10730618,247.16,247.07,32.10730618]
[1737220079101,32.10730618,247.14,247.05,32.10730618]
[1737220079985,32.10730618,247.14,247.04,0.063]
[1737220080187,4.0464,247.13,247.04,0.063]
[1737220080389,32.10730618,247.09,247.04,0.063]
[1737220080589,22.8225,247.13,247.04,0.063]
[1737220081201,32.10730618,247.12,247.04,0.063]
[1737220081500,4.0464,247.13,247.06,32.10730618]
[1737220082002,17.1017,247.14,247.06,32.10730618]
[1737220082497,17.1017,247.14,247.04,0.063]
[1737220082498,17.1017,247.14,247.08,32.10730618]
[1737220082882,17.1017,247.14,247.06,32.10730618]
[1737220083289,49.20900618,247.14,247.06,32.10730618]
[1737220083483,49.20900618,247.14,247.04,32.17030618]
[1737220083677,17.1017,247.14,247.08,32.10730618]
[1737220083877,13.0554,247.28,247.13,32.10730618]
[1737220084083,13.0554,247.28,247.21,32.10730618]
[1737220084277,4.0444,247.26,247.21,32.10730618]
[1737220084483,32.10730618,247.35,247.24,32.10730618]
[1737220084699,4.0422,247.39,247.32,32.10730618]
[1737220085496,4.0422,247.39,247.3,32.10730618]
[1737220086200,32.10730618,247.36,247.26,32.10730618]
[1737220087383,36.14960618,247.38,247.28,32.10730618]
[1737220087787,32.10730618,247.36,247.26,32.10730618]
[1737220088107,32.10730618,247.42,247.32,32.10730618]
[1737220088591,32.10730618,247.44,247.34,32.10730618]
[1737220089091,32.10730618,247.44,247.35,0.60637869]
[1737220089905,32.10730618,247.46,247.38,32.10730618]
[1737220090103,0.03,247.47,247.42,32.10730618]
[1737220090287,0.03,247.47,247.41,20.0]
[1737220090288,32.10730618,247.44,247.34,32.10730618]
[1737220090608,32.10730618,247.42,247.35,0.60630468]
[1737220090803,32.10730618,247.42,247.35,20.0]
[1737220091116,32.10730618,247.44,247.37,20.0]
[1737220091410,32.10730618,247.42,247.35,0.60627356]
[1737220091586,0.03,247.47,247.38,32.10730618]
[1737220091791,0.03,247.47,247.43,20.0]
[1737220092002,0.03,247.47,247.44,0.60613735]
[1737220092200,0.03,247.47,247.38,32.10730618]
[1737220092406,0.03,247.47,247.3,4.69544809]
[1737220092407,32.10730618,247.43,247.34,32.10730618]
[1737220092598,32.10730618,247.43,247.37,20.0]
[1737220092795,32.10730618,247.39,247.3,32.10730618]
[1737220093119,32.10730618,247.41,247.35,20.0]
[1737220093311,32.10730618,247.41,247.36,0.6063174]
[1737220093817,32.10730618,247.41,247.32,32.10730618]
[1737220093818,32.10730618,247.37,247.22,36.80275427]
[1737220093996,32.10730618,247.31,247.23,0.60652787]
[1737220094197,32.10730618,247.31,247.22,32.10730618]
[1737220094497,32.10730618,247.25,247.22,0.60649608]
[1737220094818,32.10730618,247.23,247.15,0.60666323]
[1737220095001,32.10730618,247.29,247.21,13.4109582]
[1737220095319,32.10730618,247.29,247.22,0.60664625]
[1737220095493,32.10730618,247.29,247.18,0.60662248]
[1737220095893,32.10730618,247.27,247.18,0.60662248]
[1737220096414,32.10730618,247.23,247.18,0.60662248]
[1737220096592,32.10730618,247.21,247.16,0.60677251]
[1737220097022,32.10730618,247.21,247.15,7.15342114]
[1737220097321,32.10730618,247.21,247.18,20.0]
[1737220097693,14.1493,247.36,247.16,0.60678305]
[1737220097694,32.10730618,247.22,247.16,0.60678305]
[1737220097893,32.10730618,247.17,247.04,32.17030618]
[1737220098089,40.4252,247.37,247.04,32.17030618]
[1737220098090,32.10730618,247.11,247.05,0.60701445]
[1737220098315,32.10730618,247.15,247.05,32.10730618]
[1737220098519,32.10730618,247.15,247.08,20.0]
[1737220099017,32.10730618,247.09,247.04,0.063]
[1737220099524,32.10730618,247.09,247.05,0.063]
[1737220099900,32.10730618,247.07,247.05,0.063]
[1737220100123,4.0475,247.06,247.04,0.063]
[1737220100297,32.10730618,247.05,246.88,30.0]
[1737220100620,32.10730618,246.89,246.81,2.29021785]
[1737220100823,26.3064,247.06,246.81,1.682716]
[1737220100824,32.10730618,246.82,246.81,1.682716]
[1737220101116,32.10730618,246.88,246.81,0.063]
[1737220101420,32.10730618,246.85,246.81,0.063]
[1737220101632,32.10730618,246.83,246.81,0.063]
[1737220101935,32.10730618,246.83,246.79,0.063]
[1737220102114,20.0,246.68,246.65,0.063]
[1737220102294,32.10730618,246.66,246.65,0.063]
[1737220102901,32.10730618,246.66,246.5,0.063]
[1737220103110,32.10730618,246.55,246.5,0.063]
[1737220103298,32.10730618,246.61,246.53,20.0]
[1737220103492,32.10730618,246.65,246.58,32.10730618]
[1737220103697,32.10730618,246.71,246.62,32.10730618]
[1737220103896,32.10730618,246.67,246.57,32.10730618]
[1737220104091,32.10730618,246.69,246.59,32.10730618]
[1737220104315,32.10730618,246.69,246.6,0.6081754]
[1737220104711,32.10730618,246.69,246.61,32.10730618]
[1737220104898,32.10730618,246.69,246.64,20.0]
[1737220105099,2.01072439,246.82,246.54,0.063]
[1737220105100,32.10730618,246.76,246.65,0.60808344]
[1737220105401,32.10730618,246.66,246.55,0.60791792]
[1737220105599,32.10730618,246.57,246.54,0.063]
[1737220105811,8.62,246.73,246.54,0.063]
[1737220106203,8.62,246.73,246.54,2.11149491]
[1737220106411,20.0,246.7,246.54,0.063]
[1737220106609,12.6731,246.73,246.54,0.6713456]
[1737220106812,32.10730618,246.65,246.55,32.10730618]
[1737220107007,32.10730618,246.67,246.57,32.10730618]
[1737220107213,32.10730618,246.65,246.58,0.60811305]
[1737220107400,32.10730618,246.65,246.54,0.063]
[1737220107401,20.0,246.7,246.54,0.063]
[1737220107608,32.10730618,246.55,246.54,0.063]
[1737220107817,32.10730618,246.57,246.5,0.67144827]
[1737220108017,32.10730618,246.59,246.5,0.67144827]
[1737220108196,32.10730618,246.57,246.5,0.67144827]
[1737220108396,32.10730618,246.53,246.5,0.063]
[1737220108612,32.10730618,246.59,246.5,0.063]
[1737220108813,32.10730618,246.51,246.5,0.063]
[1737220109123,32.10730618,246.55,246.5,0.063]
[1737220109629,32.10730618,246.53,246.5,0.063]
[1737220109919,32.10730618,246.52,246.5,0.063]
[1737220110306,32.10730618,246.54,246.5,0.063]
[1737220110811,32.10730618,246.52,246.5,0.063]
[1737220111113,32.10730618,246.52,246.13,12.17]
[1737220111114,32.10730618,246.52,246.3,32.10730618]
[1737220111313,32.10730618,246.54,246.17,13.049]
[1737220111314,32.10730618,246.41,246.33,32.10730618]
[1737220111525,32.10730618,246.43,246.35,32.10730618]
[1737220111703,32.10730618,246.47,246.37,32.10730618]
[1737220112018,32.10730618,246.51,246.44,20.0]
[1737220112219,32.10730618,246.55,246.48,20.0]
[1737220112398,4.056,246.55,246.5,0.03]
[1737220112605,32.10730618,246.51,246.5,0.03]
[1737220113708,32.10730618,246.51,246.44,19.98808459]
[1737220114216,32.10730618,246.48,246.39,32.10730618]
[1737220114432,32.10730618,246.44,246.35,36.16640618]
[1737220115930,12.7794,246.71,246.34,0.60834577]
[1737220116223,12.7794,246.71,246.36,20.0]
[1737220116422,32.10730618,246.59,246.54,20.0]
[1737220116597,32.10730618,246.61,246.54,20.0]
[1737220116800,32.10730618,246.55,246.4,32.10730618]
[1737220117001,32.10730618,246.47,246.38,32.10730618]
[1737220117200,32.10730618,246.51,246.43,20.0]
[1737220117405,32.10730618,246.51,246.41,0.6085788]
[1737220117608,32.10730618,246.49,246.41,20.0]
[1737220117808,32.10730618,246.56,246.49,20.0]
[1737220118017,32.10730618,246.58,246.48,32.10730618]
[1737220118217,4.0544,246.64,246.49,20.0]
[1737220118218,32.10730618,246.56,246.49,20.0]
[1737220118426,32.10730618,246.52,246.42,32.10730618]
[1737220118606,32.10730618,246.52,246.43,0.60859301]
[1737220118805,32.10730618,246.54,246.45,20.0]
[1737220119004,32.10730618,246.54,246.47,20.0]
[1737220119409,32.10730618,246.48,246.38,36.16590618]
[1737220119618,32.10730618,246.48,246.39,0.60864487]
[1737220119817,32.10730618,246.5,246.43,20.0]
[1737220120130,32.10730618,246.58,246.51,20.0]
[1737220120626,32.10730618,246.56,246.49,0.60840585]
[1737220121130,32.10730618,246.6,246.53,20.0]
[1737220121310,32.10730618,246.65,246.55,52.10730618]
[1737220121506,32.10730618,246.65,246.56,0.60823959]
[1737220121711,0.063,246.76,246.64,20.0]
[1737220122033,0.063,246.76,246.67,32.10730618]
[1737220122336,32.10730618,246.7,246.59,32.10730618]
[1737220122538,32.10730618,246.7,246.6,0.60812945]
[1737220122740,32.10730618,246.7,246.64,20.0]
[1737220123029,32.10730618,246.7,246.62,0.60809358]
[1737220123223,32.10730618,246.68,246.6,0.60817746]
[1737220123431,32.10730618,246.64,246.55,32.10730618]
[1737220123632,32.10730618,246.64,246.56,0.6082689]
[1737220123814,32.10730618,246.64,246.58,20.0]
[1737220124012,32.10730618,246.64,246.56,0.60827306]
[1737220124325,32.10730618,246.64,246.54,32.10730618]
[1737220124524,32.10730618,246.65,246.55,32.71564805]
[1737220124733,32.10730618,246.63,246.58,20.0]
[1737220124931,32.10730618,246.63,246.54,0.60830132]
[1737220125238,32.10730618,246.61,246.51,32.10730618]
[1737220125426,32.10730618,246.59,246.49,36.19410618]
[1737220125636,32.10730618,246.61,246.51,32.10730618]
[1737220125937,4.77061063,246.6,246.54,20.0]
[1737220126128,4.77061063,246.6,246.51,32.10730618]
[1737220126520,0.71551063,246.59,246.51,32.10730618]
[1737220126725,36.16230618,246.61,246.49,4.0868]
[1737220126726,32.10730618,246.53,246.49,0.03]
[1737220126933,32.10730618,246.51,246.49,0.03]
[1737220127242,0.71551063,246.5,246.49,0.03]
[1737220127418,9.31551063,246.5,246.49,2e-08]
[1737220127927,13.37221063,246.5,246.49,2e-08]
[1737220129030,32.10730618,246.51,246.42,20.0]
[1737220129342,32.10730618,246.51,246.44,20.0]
[1737220129515,10.1385,246.59,246.44,20.0]
[1737220129516,32.10730618,246.49,246.44,20.0]
[1737220129717,32.10730618,246.51,246.45,0.60861934]
[1737220129923,32.10730618,246.51,246.44,20.0]
[1737220130219,32.10730618,246.51,246.45,0.608572]
[1737220130420,32.10730618,246.49,246.45,0.608572]
[1737220130626,32.10730618,246.51,246.41,32.10730618]
[1737220130848,32.10730618,246.51,246.44,20.0]
[1737220131139,32.10730618,246.55,246.46,20.0]
[1737220131329,32.10730618,246.53,246.46,20.0]
[1737220131529,32.10730618,246.55,246.48,20.0]
[1737220132116,0.71551063,246.64,246.48,20.0]
[1737220132117,32.10730618,246.61,246.54,20.0]
[1737220132319,32.10730618,246.61,246.55,0.60832418]
[1737220133243,32.10730618,246.61,246.56,20.0]
[1737220133445,32.10730618,246.63,246.56,20.6082744]
[1737220133825,32.10730618,246.63,246.56,20.0]
[1737220134146,32.10730618,246.61,246.54,0.60826555]
[1737220134348,32.10730618,246.69,246.62,20.0]
[1737220134526,0.71551063,246.74,246.67,20.0]
[1737220134725,0.71551063,246.78,246.71,20.0]
[1737220135022,32.10730618,246.84,246.74,32.10730618]
[1737220135225,32.10730618,246.87,246.75,0.60769034]
[1737220135431,0.71551063,246.86,246.75,0.60769034]
[1737220135650,32.10730618,246.85,246.75,0.60769034]
[1737220135829,20.0,246.71,246.5,32.10730618]
[1737220136030,32.10730618,246.58,246.47,32.10730618]
[1737220136238,32.10730618,246.58,246.48,0.03]
[1737220136542,32.10730618,246.66,246.55,32.10730618]
[1737220136846,41.4477326,246.7,246.59,32.10730618]
[1737220137146,40.68730618,246.7,246.59,32.10730618]
[1737220137343,36.16050618,246.72,246.59,32.10730618]
[1737220137644,32.10730618,246.6,246.49,32.10730618]
[1737220137851,32.10730618,246.6,246.48,0.03]
[1737220138026,0.76042573,246.59,246.47,22.11171977]
[1737220138227,32.10730618,246.55,246.45,32.10730618]
[1737220138441,32.10730618,246.61,246.5,32.10730618]
[1737220138645,32.10730618,246.59,246.48,32.10730618]
[1737220138845,32.10730618,246.57,246.46,32.10730618]
[1737220139148,32.10730618,246.48,246.37,32.10730618]
[1737220139329,41.44781498,246.56,246.45,32.10730618]
[1737220139529,41.44781498,246.56,246.48,20.0]
[1737220139921,8.58,246.56,246.5,20.0]
[1737220140323,32.10730618,246.6,246.52,20.0]
[1737220140523,0.76041607,246.59,246.52,20.0]
[1737220141040,32.10730618,246.58,246.52,20.0]
[1737220141448,32.10730618,246.6,246.52,20.0]
[1737220141651,32.10730618,246.54,246.43,32.10730618]
[1737220141964,32.10730618,246.44,246.31,32.10730618]
[1737220142132,32.10730618,246.39,246.27,36.16780618]
[1737220142331,32.10730618,246.37,246.27,32.10730618]
[1737220142641,32.10730618,246.41,246.35,20.0]